[Event "Marmaris Icmeler-IM May 2022"]
[Site "Icmeler"]
[Date "2022.05.07"]
[Round "6.5"]
[White "Toufighi, Homayoon"]
[Black "Nazari, Arad"]
[Result "1/2-1/2"]
[ECO "D02"]
[WhiteElo "2439"]
[BlackElo "2287"]
[Annotator "TA"]
[PlyCount "31"]
[EventDate "2022.05.05"]
[EventType "schev"]
[EventCountry "TUR"]
[SourceTitle "playchess.com"]
[Source "ChessBase"]
[SourceQuality "1"]
[TimeControl "5400+30"]

{[%evp 15,31,-37,-20,-28,-16,-16,-6,-17,-9,-8,0,0,0,-6,0,0,0,-14]} 1. d4 {[%emt 0:10:00]} Nf6 {[%emt 0:01:00]} 2. Nf3 {[%emt 0:00:30]} d5 {[%emt 0:00:00]} 3. Bf4 {[%emt 0:00:00]} c5 {[%emt 0:00:00]} 4. e3 {[%emt 0:00:00]} Nc6 {[%emt 0:00:30]} 5. c3 {[%emt 0:00:30]} Qb6 {[%emt 0:00:00]} 6. Qb3 {[%emt 0:00:00]} c4 {[%emt 0:00:00]} 7. Qc2 $1 {[%emt 0:00:00] 7.Qc2 scores better than 7.Qxb6.} Bf5 {[%emt 0:00:00]} 8. Qc1 {[%emt 0:00:00]} e6 {[%emt 0:00:00]} 9. h3 {[%emt 0:00:00] D02: 1 d4 d5 2 Nf3 sidelines, including 2...Nf6 3 g3 and 2...Nf6 3 Bf4.} Be7 {[%emt 0:00:30]} 10. Nbd2 {[%emt 0:00:00] The position is equal.} Qd8 {[%emt 0:00:00]} 11. Nh4 {[%emt 0:00:00]} Be4 {[%emt 0:00:00]} 12. Nhf3 {[%emt 0:00:00]} Bg6 {[%emt 0:00:30]} 13. Nh4 {[%emt 0:00:00]} Be4 {[%emt 0:00:00]} 14. Nhf3 {[%emt 0:00:30]} Bg6 {[%emt 0:00:00] [#]} 15. Nh4 $146 {[%emt 0:00:00]} ({Predecessor:} 15. Be2) 15... Be4 {[%emt 0:00:00]} 16. Nhf3 {[%emt 0:00:00] Not much happened in this game.  Weighted Error Value: White=0.02 (flawless) /Black=0.06 (flawless)} 1/2-1/2

[Event "Marmaris Icmeler-IM May 2022"]
[Site "Icmeler"]
[Date "2022.05.08"]
[Round "7.1"]
[White "Hereklioglu, Sude"]
[Black "Darban, Morteza"]
[Result "0-1"]
[ECO "A04"]
[WhiteElo "1918"]
[BlackElo "2279"]
[Annotator "TA"]
[PlyCount "108"]
[EventDate "2022.05.05"]
[EventType "schev"]
[EventCountry "TUR"]
[SourceTitle "playchess.com"]
[Source "ChessBase"]
[SourceQuality "1"]
[TimeControl "5400+30"]

{[%evp 16,108,0,-6,-5,-47,-39,-59,-41,-37,0,0,0,0,0,0,0,0,0,-93,-85,-116,-100,-105,-108,-168,-165,-162,-164,-164,-132,-133,-141,-138,-102,-150,0,-166,0,-90,-64,-80,-93,-129,-159,-196,-87,-97,-87,-90,-87,-95,-72,-208,-194,-286,-280,-284,-272,-267,-254,-382,-382,-547,-515,-472,-458,-588,-588,-581,-554,-547,-489,-461,-452,-561,-547,-658,-589,-6099,-7132,-6103,-5781,-29966,-29969,-29966,-11475,-11150,-9085,-2733,-1993,-29972,-29973,-6640,-2525]} 1. Nf3 {[%emt 0:06:00]} c5 {[%emt 0:03:00]} 2. g3 {[%emt 0:00:30]} g6 {[%emt 0:00:30]} 3. Bg2 {[%emt 0:00:00]} Bg7 {[%emt 0:00:30]} 4. O-O {[%emt 0:00:00]} Nc6 {[%emt 0:00:00]} 5. e4 {[%emt 0:01:30]} d6 {[%emt 0:00:00]} 6. d3 {[%emt 0:01:30]} e5 {[%emt 0:00:30]} 7. c3 {[%emt 0:01:30]} Nge7 {[%emt 0:00:30]} 8. a4 {[%emt 0:01:30]} O-O {[%emt 0:00:30]} 9. Na3 {[%emt 0:00:30]} h6 {[%emt 0:00:30] 9...Be6 deserves study. A04: Unusual lines after 1 Nf3 and King's Indian Attack.} 10. Ne1 {[%emt 0:05:30]} Be6 {[%emt 0:01:30]} 11. f4 {[%emt 0:04:30] [#]} Na5 $146 {[%emt 0:03:30] Black is slightly better.} ({Predecessor:} 11... Qd7 12. Rf2 d5 13. Qc2 Rac8 14. Nf3 Kh7 15. fxe5 Nxe5 16. Nxe5 Bxe5 17. Qe2 Bg7 {0-1 (49) Grishchenko,V (1983)-Akmalov,D (1874) Voronezh 2014}) 12. Be3 {[%emt 0:09:30][%cal Of4f5]} Rc8 {[%emt 0:00:30]} 13. f5 {[%emt 0:02:30]} gxf5 {[%emt 0:01:30]} 14. Qh5 $1 {[%emt 0:00:00][%csl LRf5,LRh6][%cal Re4f5]} fxe4 {[%emt 0:00:30]} 15. dxe4 {[%emt 0:01:00]} Kh7 {[%emt 0:01:30]} 16. Nf3 {[%emt 0:00:30] Black must now prevent Ng5+.} f6 {[%emt 0:01:30] Prevents Ng5+.} 17. g4 {[%emt 0:03:30]} (17. Bh3 $11 {remains equal.} Bxh3 18. Qxh3) 17... Qe8 {[%emt 0:02:30]} 18. Qh4 {[%emt 0:01:30]} Ng6 {[%emt 0:01:30]} ({Not} 18... Qxa4 19. Bxh6 Bxh6 20. g5 $15) 19. Qg3 {[%emt 0:01:30]} Qxa4 {[%emt 0:01:30]} 20. h4 {[%emt 0:02:30]} (20. Rf2 $17) 20... Qd7 $19 {[%emt 0:00:00]} (20... Qxe4 $2 21. Ng5+ $1 {[%mdl 512]} hxg5 22. Bxe4 $18) 21. g5 {[%emt 0:01:30]} fxg5 {[%emt 0:00:00]} 22. hxg5 {[%emt 0:01:30]} h5 {[%emt 0:04:30]} 23. Nh4 {[%emt 0:07:30]} Nxh4 {[%emt 0:01:30]} 24. Qxh4 {[%emt 0:00:30]} Kg6 {[%emt 1:14:30]} 25. Qg3 {[%emt 0:17:30]} ({White should try} 25. Nc2 Rxf1+ 26. Rxf1) 25... Kh7 {[%emt 0:00:30]} 26. Qh4 $1 {[%emt 0:00:30] [#]} Kg6 {[%emt 0:00:30]} (26... Bg4 $1 $19 27. Kh2 Kg6) 27. Nc2 {[%emt 0:00:00]} ({Much worse is} 27. Bf3 Bg4 28. Bxg4 hxg4 29. Rxf8 Rxf8 $17) (27. Qg3 $1 $11) 27... Rxf1+ {[%emt 0:00:00]} 28. Rxf1 {[%emt 0:04:00]} Rf8 {[%emt 0:00:00]} 29. Bc1 {[%emt 0:02:30]} (29. Bf3 $2 Bg4 30. Ne1 b5 $17) 29... Rxf1+ {[%emt 0:00:00]} 30. Bxf1 {[%emt 0:00:30] [#]} Nb3 {[%emt 0:00:00]} (30... Bf8 $1 $19 {Threatens to win with ...Be7.} 31. b4 Nb3) 31. Be3 $17 {[%emt 0:00:00]} b5 {[%emt 0:00:00]} 32. Ne1 {[%emt 0:03:00]} c4 {[%emt 0:00:00]} 33. Ng2 {[%emt 0:00:30]} Nc5 {[%emt 0:00:00][%cal Bb3c5,Bc5e4,Be4g3][%mdl 32]} 34. Qf2 {[%emt 0:05:33] This move loses the game for White.} (34. Qh1 $17) 34... Nxe4 $19 {[%emt 0:00:00]} 35. Nh4+ {[%emt 0:00:05]} (35. Qc2 $142 d5 36. Nh4+ Kf7 37. Bg2) 35... Kh7 {[%emt 0:00:00]} 36. Qf3 {[%emt 0:00:25]} d5 {[%emt 0:00:00]} 37. Qxh5+ {[%emt 0:00:26]} Kg8 {[%emt 0:00:00] aiming for ...Bg4.} 38. g6 {[%emt 0:00:52]} (38. Bg2 {keeps fighting.}) 38... Bf6 {[%emt 0:00:00]} 39. Bg2 {[%emt 0:10:48]} (39. Nf3 {was worth a try.} Ng3 40. Qh7+ Qxh7 41. gxh7+ Kxh7 42. Ng5+ Bxg5 43. Bxg5) 39... Ng3 {[%emt 0:00:00]} 40. Qh6 {[%emt 0:00:27]} Qg7 {[%emt 0:00:00] ...Qxh6 is the strong threat.} 41. Nf3 {[%emt 0:02:07]} Qxh6 {[%emt 0:00:00]} 42. Bxh6 {[%emt 0:00:04]} Ne4 {[%emt 0:00:00] Inhibits Ng5.} 43. Kf1 {[%emt 0:03:30]} a6 {[%emt 0:00:00]} 44. Ke2 {[%emt 0:00:44]} Bf5 {[%emt 0:00:00]} 45. Nd2 {[%emt 0:01:48]} Bxg6 {[%emt 0:00:00]} 46. Nxe4 {[%emt 0:00:04]} Bxe4 {[%emt 0:00:00]} 47. Bxe4 {[%emt 0:00:04]} dxe4 {[%emt 0:00:00][%mdl 4096] Endgame KB-KB} 48. Ke3 {[%emt 0:00:03]} Kf7 {[%emt 0:00:00] Hoping for ...a5.} 49. Kxe4 {[%emt 0:00:07]} Ke6 {[%emt 0:00:00]} 50. Be3 {[%emt 0:00:51]} Be7 {[%emt 0:00:00]} (50... a5 $142 51. Bb6 a4 52. Be3 Be7 53. Bh6 b4 54. cxb4 Bxb4 55. Bc1 Bc5 56. Kf3 c3 57. bxc3 a3 58. Kg2 Kd6 59. Kh2 Kd5 60. Kg2 e4 61. Kf1 Kc4 62. Kg2 a2 63. Bb2 Kd3 64. Kh2 e3 65. Kg3 e2 66. Kg4 e1=Q 67. Kf5 Qf2+ 68. Kg6 Qxb2 69. Kf6 a1=Q 70. Kf5 Qf1+ 71. Ke6 Qb6+ 72. Kd7 Qf5+ 73. Ke8 Qfe6#) 51. Bb6 {[%emt 0:00:16]} Bg5 {[%emt 0:00:00]} 52. Bc5 {[%emt 0:00:15]} Bc1 {[%emt 0:00:00] ( -> ...a5)} 53. Ba3 {[%emt 0:00:05]} a5 {[%emt 0:00:00]} 54. Kf3 {[%emt 0:00:58]} Kd5 {[%emt 0:00:00] Weighted Error Value: White=0.61/Black=0.16 (very precise)} 0-1

[Event "Marmaris Icmeler-IM May 2022"]
[Site "Icmeler"]
[Date "2022.05.08"]
[Round "7.2"]
[White "Ince, Taylan Ruzgar"]
[Black "Odeev, Handszar"]
[Result "1-0"]
[ECO "C41"]
[WhiteElo "2018"]
[BlackElo "2305"]
[Annotator "TA"]
[PlyCount "45"]
[EventDate "2022.05.05"]
[EventType "schev"]
[EventCountry "TUR"]
[SourceTitle "playchess.com"]
[Source "ChessBase"]
[SourceQuality "1"]
[TimeControl "5400+30"]

{[%evp 17,45,15,36,6,31,16,15,-24,-16,-3,33,24,35,39,97,98,48,97,142,-396,87,-378,145,-530,0,-611,-533,-527,185,-206]} 1. e4 {[%emt 0:01:00]} e5 {[%emt 0:14:00]} 2. Nf3 {[%emt 0:00:00]} d6 {[%emt 0:00:30]} 3. d4 {[%emt 0:00:00]} exd4 {[%emt 0:00:00]} 4. Nxd4 {[%emt 0:00:00]} Nf6 {[%emt 0:00:00]} 5. Nc3 {[%emt 0:00:00]} Be7 {[%emt 0:00:30]} 6. Be2 {[%emt 0:00:30]} O-O {[%emt 0:00:00]} 7. O-O {[%emt 0:00:30]} Re8 {[%emt 0:00:00]} 8. f4 {[%emt 0:00:00]} Bf8 {[%emt 0:00:00]} 9. Bf3 {[%emt 0:00:00]} c5 {[%emt 0:00:00]} 10. Nde2 {[%emt 0:00:00][%cal Oe4e5] C41: Philidor Defence.} Nc6 {[%emt 0:00:30]} 11. h3 {[%emt 0:01:00]} Bd7 {[%emt 0:01:30]} 12. g4 {[%emt 0:08:30] Black must now prevent g5. The position is equal.} b5 $1 {[%emt 0:07:30]} 13. Ng3 {[%emt 0:19:30] [#]} b4 $146 {[%emt 0:07:30]} ({Predecessor:} 13... Nd4 14. Bg2 b4 15. Nce2 Nxe2+ 16. Qxe2 Rb8 17. Rd1 Qc7 18. g5 Bb5 19. Qf3 Nd7 {1-0 (59) Savanovic,A (2442)-Ibarra Jerez,J (2558) Chess.com INT 2019}) 14. Nce2 {[%emt 0:03:30]} h5 {[%emt 0:02:30]} 15. gxh5 {[%emt 0:05:30]} Bxh3 {[%emt 0:00:30]} ({Black should play} 15... Rc8 $14) 16. e5 $1 $16 {[%emt 0:01:30]} Bxf1 {[%emt 0:10:30]} ({Better is} 16... Nxe5 $16 17. fxe5 Rxe5) 17. Qxf1 $14 {[%emt 0:01:30]} Rc8 {[%emt 0:17:30]} 18. c3 $2 {[%emt 0:03:30][%mdl 8192] [#]} (18. exf6 $16 {And now Qg2 would win.} Qxf6 19. c3) 18... bxc3 $2 {[%emt 0:02:30]} 19. bxc3 $2 {[%emt 0:00:30][%mdl 8192]} (19. exf6 $16 {is forced if you want to stay better.} c2 20. Qg2) 19... d5 $2 {[%emt 0:02:30]} 20. Bxd5 $2 {[%emt 0:05:30][%mdl 8192]} c4 $2 {[%emt 0:04:30]} 21. Qf3 $2 {[%emt 0:03:30][%mdl 8192]} Bc5+ {[%emt 0:16:41]} 22. Kg2 {[%emt 0:00:30]} Ne7 {[%emt 0:00:46][%mdl 8192] [#]} ({Not} 22... Qxd5 $2 23. exf6 Qxf3+ 24. Kxf3 $19) (22... Nxd5 $19 23. Ne4 Nce7) 23. Be4 $4 {[%emt 0:25:30][%mdl 40960] Weighted Error Value: White=1.66/Black=1.46. Loss on time!?} (23. Bxc4 $18 {and all is fine.} Nfd5 24. Bb3) 1-0

[Event "Marmaris Icmeler-IM May 2022"]
[Site "Icmeler"]
[Date "2022.05.08"]
[Round "7.3"]
[White "Taspinar, Yanki"]
[Black "Sevdimaliyev, Urfan"]
[Result "1/2-1/2"]
[ECO "B78"]
[WhiteElo "2176"]
[BlackElo "2331"]
[Annotator "TA"]
[PlyCount "115"]
[EventDate "2022.05.05"]
[EventType "schev"]
[EventCountry "TUR"]
[SourceTitle "playchess.com"]
[Source "ChessBase"]
[SourceQuality "1"]
[TimeControl "5400+30"]

{[%evp 24,115,33,35,42,48,48,47,40,31,12,0,0,0,0,-15,-14,-98,-93,-141,-147,-102,-100,-102,-20,-20,-20,-20,-20,-20,-20,-20,-20,-20,-20,-20,-20,-20,-20,-20,-20,-27,-20,-20,-16,-16,-16,-16,-17,-17,-16,-18,-33,-43,0,-57,-57,-100,-102,-108,-57,-89,-92,-107,-107,-107,-107,-107,0,0,0,0,0,0,0,0,0,0,0,0,0,0,0,0,0,0,0,0,0,0,0,0,0,0]} 1. e4 {[%emt 0:03:00]} c5 {[%emt 0:10:00]} 2. Nf3 {[%emt 0:00:00]} Nc6 {[%emt 0:01:30]} 3. d4 {[%emt 0:00:00]} cxd4 {[%emt 0:00:30]} 4. Nxd4 {[%emt 0:00:30]} g6 {[%emt 0:00:00]} 5. Nc3 {[%emt 0:00:00]} Bg7 {[%emt 0:00:00]} 6. Be3 {[%emt 0:00:00]} Nf6 {[%emt 0:00:00]} 7. Bc4 {[%emt 0:00:00]} O-O {[%emt 0:01:00]} 8. Bb3 {[%emt 0:01:00]} d6 {[%emt 0:01:30]} 9. f3 {[%emt 0:07:30]} Bd7 {[%emt 0:00:30]} 10. Qd2 {[%emt 0:00:30]} Rc8 {[%emt 0:02:30]} 11. O-O-O {[%emt 0:00:00]} Nxd4 {[%emt 0:00:00]} 12. Bxd4 {[%emt 0:00:00]} b5 {[%emt 0:00:00]} 13. Nd5 {[%emt 0:09:30]} Nxd5 $1 {[%emt 0:00:00] B78: Sicilian Dragon: Yugoslav Attack, 9 Bc4 Bd7 10 0-0-0 Rc8.} 14. Bxg7 {[%emt 0:00:30]} Kxg7 {[%emt 0:00:00]} 15. exd5 {[%emt 0:00:30]} a5 {[%emt 0:01:30] ...a4 is the strong threat. White is slightly better.} 16. a3 {[%emt 0:00:00]} Kg8 {[%emt 0:00:30]} 17. g4 {[%emt 0:00:00]} b4 {[%emt 0:00:30]} 18. axb4 {[%emt 0:00:30]} axb4 {[%emt 0:00:30]} 19. Qxb4 {[%emt 0:00:30]} Rb8 {[%emt 0:08:30]} 20. Qd4 {[%emt 0:01:30]} (20. Qc3 $11) 20... Qa5 $17 {[%emt 0:00:30][%mdl 1024] aiming for ...Rfc8. Black has strong compensation.} 21. Bc4 {[%emt 0:14:30]} (21. Qc3 $142 Rb4 22. Bc4) 21... Rfc8 $1 {[%emt 0:07:30] Hoping for ...Rb4.} 22. b3 {[%emt 0:01:30] [#]} Rb4 $146 {[%emt 0:08:30] White must now prevent ...Bb5.} ({Predecessor:} 22... Bb5 23. Bxb5 Rxb5 24. Kb2 Rxc2+ 25. Kxc2 Qa2+ 26. Kd3 Rxb3+ 27. Qc3 Rxc3+ 28. Kxc3 Qa3+ {1-0 (75) Alekseenko,K (2696)-Manukyan,S (2244) Chess.com INT 2020}) 23. Qd3 {[%emt 0:12:30] [#]} Bb5 {[%emt 0:12:30]} (23... Rcxc4 $1 $17 {[%mdl 512]} 24. bxc4 Ba4) 24. Bxb5 $11 {[%emt 0:00:30]} Rxb5 {[%emt 0:00:00]} 25. Kb2 {[%emt 0:04:30] Prevents Rc3.} Rbc5 {[%emt 0:04:00]} (25... Ra8 $2 26. Ra1 $18) 26. c4 {[%emt 0:13:30] [#]} Rxc4 $1 {[%emt 0:06:30]} 27. bxc4 {[%emt 0:02:30]} Rb8+ {[%emt 0:00:30]} 28. Qb3 $1 {[%emt 0:02:30]} Rxb3+ {[%emt 0:00:30]} 29. Kxb3 {[%emt 0:00:00][%mdl 4096] Endgame KQ-KRR} Qb6+ {[%emt 0:00:30]} 30. Kc3 {[%emt 0:01:00]} Qe3+ {[%emt 0:00:30]} 31. Rd3 {[%emt 0:00:00]} Qe5+ {[%emt 0:04:30]} 32. Kc2 {[%emt 0:01:00]} Qe2+ {[%emt 0:01:30]} 33. Kc3 {[%emt 0:00:30]} Kf8 {[%emt 0:03:30]} 34. h4 {[%emt 0:03:30]} h5 {[%emt 0:02:30]} 35. g5 {[%emt 0:03:30]} Qf2 {[%emt 0:04:30]} 36. Kb3 $1 {[%emt 0:03:02]} Kg7 {[%emt 0:06:02]} 37. Kc3 {[%emt 0:05:35]} Qe2 {[%emt 0:05:27]} 38. Rhd1 {[%emt 0:03:28]} Qf2 {[%emt 0:03:30]} 39. Rd4 {[%emt 0:02:36]} (39. Rh1 $1 $11) 39... Qxf3+ $15 {[%emt 0:00:21]} 40. R1d3 {[%emt 0:00:33] [#]} Qe2 {[%emt 0:00:49]} 41. Rd2 {[%emt 0:00:40]} Qe3+ {[%emt 0:00:21]} (41... Qe1 $17 42. Kb4 Qf1) 42. Kc2 {[%emt 0:00:48]} Kf8 {[%emt 0:00:36]} 43. R2d3 {[%emt 0:00:22]} Qe5 {[%emt 0:00:32]} 44. Rd2 {[%emt 0:00:49]} Ke8 {[%emt 0:02:27]} 45. Kd3 {[%emt 0:00:28]} f6 {[%emt 0:01:55]} (45... Qg3+ $17 46. Kc2 Qe3) 46. gxf6 $1 $11 {[%emt 0:00:25] The position is equal.} Qxf6 {[%emt 0:00:10]} 47. Re4 {[%emt 0:03:26]} g5 {[%emt 0:01:11]} 48. hxg5 {[%emt 0:00:12]} Qxg5 {[%emt 0:00:02]} 49. Re3 {[%emt 0:02:51]} h4 {[%emt 0:00:51]} 50. Rh2 {[%emt 0:01:44]} Qf5+ {[%emt 0:00:32]} 51. Kc3 {[%emt 0:00:33]} Qf1 {[%emt 0:01:28]} 52. Reh3 {[%emt 0:00:14] Active counter play!} Qc1+ {[%emt 0:00:14]} 53. Kd3 {[%emt 0:00:04]} Qd1+ {[%emt 0:00:04]} 54. Kc3 {[%emt 0:00:06]} Qc1+ {[%emt 0:00:03]} 55. Kb3 {[%emt 0:00:10]} Qb1+ {[%emt 0:00:09]} 56. Kc3 {[%emt 0:00:08]} Qc1+ {[%emt 0:00:08]} 57. Kb3 {[%emt 0:00:01]} Qb1+ {[%emt 0:00:00]} 58. Kc3 {[%emt 0:00:04] Weighted Error Value: White=0.08 (flawless) /Black=0.07 (flawless)} 1/2-1/2

[Event "Marmaris Icmeler-IM May 2022"]
[Site "Icmeler"]
[Date "2022.05.08"]
[Round "7.4"]
[White "Kilic, Eray"]
[Black "Toufighi, Homayoon"]
[Result "1-0"]
[ECO "C10"]
[WhiteElo "2192"]
[BlackElo "2439"]
[Annotator "TA"]
[PlyCount "53"]
[EventDate "2022.05.05"]
[EventType "schev"]
[EventCountry "TUR"]
[SourceTitle "playchess.com"]
[Source "ChessBase"]
[SourceQuality "1"]
[TimeControl "5400+30"]

{[%evp 12,53,50,50,54,53,50,60,45,23,42,44,53,0,55,36,47,-32,10,6,8,8,4,33,25,0,0,0,14,14,14,14,72,47,45,50,174,160,1040,1044,1120,1102,925,910]} 1. e4 {[%emt 0:01:00]} e6 {[%emt 0:13:00]} 2. d4 {[%emt 0:00:00]} d5 {[%emt 0:00:30]} 3. Nc3 {[%emt 0:00:00]} dxe4 {[%emt 0:00:00]} 4. Nxe4 {[%emt 0:00:00]} Bd7 {[%emt 0:00:00]} 5. Nf3 {[%emt 0:01:00]} Bc6 {[%emt 0:01:30]} 6. Bd3 {[%emt 0:00:00]} Nd7 {[%emt 0:00:30]} 7. c3 {[%emt 0:00:00]} Be7 {[%emt 0:00:30] C10: French with 3 Nc3: Unusual Black 3rd moves and 3...dxe4.} 8. Qe2 {[%emt 0:01:30]} Ngf6 {[%emt 0:00:30]} 9. Nxf6+ {[%emt 0:00:30]} Bxf6 {[%emt 0:00:00] White is slightly better.} 10. h4 {[%emt 0:03:30]} Bxf3 {[%emt 0:08:00] [#]} 11. Qxf3 $146 {[%emt 0:04:30]} ({Predecessor:} 11. gxf3 Qe7 12. Qe4 c6 13. f4 O-O-O 14. Be3 h5 15. a4 Bxh4 16. Qg2 Bf6 17. a5 {1-0 (47) Espineira Gonzalez,D (2316)-Valles Mata,D (2132) Mondariz 2004}) 11... c6 {[%emt 0:01:30]} 12. Bf4 {[%emt 0:05:30]} (12. Qe4 $14) 12... Qa5 {[%emt 0:04:30]} ({Black should try} 12... Bxh4 $11 13. a4 Bg5) 13. b4 {[%emt 0:04:30]} Qd5 {[%emt 0:02:30]} 14. Qg3 {[%emt 0:21:30]} ({Better is} 14. Be4 $14 Qc4 15. Bd2) 14... e5 {[%emt 0:05:30]} 15. dxe5 {[%emt 0:00:30]} Nxe5 {[%emt 0:00:30]} 16. O-O-O {[%emt 0:07:30][%cal Be1c1,Bc1d2,Bd2e3,Be3f3][%mdl 32]} Nxd3+ {[%emt 0:04:30]} 17. Rxd3 {[%emt 0:03:30]} Qxa2 {[%emt 0:01:30] Hoping for ...0-0.} 18. Be5 {[%emt 0:13:30] Black must now prevent Bxf6.} Qa1+ {[%emt 0:08:30]} 19. Kd2 {[%emt 0:00:30] Active counter play!} Qb2+ {[%emt 0:00:30]} (19... Qxh1 20. Bxf6 gxf6 21. Qe3+ Kf8 22. Qc5+ Ke8 23. Re3+ Kd8 24. Qd6+ Kc8 25. Re7) 20. Ke3 {[%emt 0:04:30] Strongly threatening Bxf6.} Kf8 $1 {[%emt 0:16:30] ...Bxe5 is the strong threat.} 21. Re1 {[%emt 0:00:30]} h5 {[%emt 0:04:30]} (21... Re8 $2 22. Kf3 Rc8 23. Qf4 $18) (21... Qc2 $1 $11) 22. Bxf6 $1 $16 {[%emt 0:02:30]} ({Much weaker is} 22. Rd2 Qb3 23. f3 (23. Kf3 Rh6 $17) 23... Bxe5 24. Qxe5 Rh6 $15) 22... gxf6 {[%emt 0:01:30]} 23. Kf3 {[%emt 0:01:30] aiming for Red1.} Rg8 {[%emt 0:03:30] [#] Loses the game.} (23... Qc2 $14 24. Ree3 Qb1) 24. Qf4 $1 $40 {[%emt 0:04:30][%mdl 128] White attacks with force.} ({Reject} 24. Qc7 $6 Qc2 25. Qd7 a5 $11) 24... Kg7 {[%emt 0:02:55] [#] Inhibits Qh6+.} (24... Rg6 $16) 25. Re6 $3 {[%emt 0:00:30][%mdl 512] White is clearly winning.} Rge8 {[%emt 0:02:03]} (25... Qxc3 26. Rxc3) 26. Qxf6+ {[%emt 0:00:30]} Kg8 {[%emt 0:00:07] [#]} 27. Rd7 $1 {[%emt 0:00:30][%csl LRb7,LRf7][%mdl 512] Weighted Error Value: White=0.14 (very precise) /Black=0.29 (precise)} 1-0

[Event "Marmaris Icmeler-IM May 2022"]
[Site "Icmeler"]
[Date "2022.05.08"]
[Round "7.5"]
[White "Nazari, Arad"]
[Black "Huseyinoglu, Alihan"]
[Result "1-0"]
[ECO "B51"]
[WhiteElo "2287"]
[BlackElo "2278"]
[Annotator "TA"]
[PlyCount "77"]
[EventDate "2022.05.05"]
[EventType "schev"]
[EventCountry "TUR"]
[SourceTitle "playchess.com"]
[Source "ChessBase"]
[SourceQuality "1"]
[TimeControl "5400+30"]

{[%evp 10,77,14,13,25,16,28,17,33,28,34,53,31,41,51,15,8,14,21,13,0,4,29,18,24,24,23,22,22,17,27,24,58,31,32,22,75,51,55,54,40,40,110,119,120,106,115,103,95,61,68,79,63,14,25,7,9,26,38,45,53,41,58,65,360,362,378,379,368,368]} 1. e4 {[%emt 0:11:00]} c5 {[%emt 0:01:00]} 2. Nf3 {[%emt 0:02:30]} Nc6 {[%emt 0:01:30]} 3. Bb5 {[%emt 0:00:00]} d6 {[%emt 0:00:30]} 4. Bxc6+ {[%emt 0:00:00]} bxc6 {[%emt 0:00:00]} 5. O-O {[%emt 0:00:30]} Bg4 {[%emt 0:05:00]} 6. h3 {[%emt 0:00:30]} Bh5 {[%emt 0:00:00] B51: Sicilian: Moscow Variation (3 Bb5+) without 3...Bd7.} 7. Re1 {[%emt 0:05:30]} e5 {[%emt 0:03:00]} 8. c3 {[%emt 0:01:30][%cal Bc2c3,Bc3d4][%mdl 32]} Nf6 {[%emt 0:02:30] The position is equal.} 9. d4 {[%emt 0:07:30]} cxd4 {[%emt 0:02:30]} 10. cxd4 {[%emt 0:00:30]} Nd7 {[%emt 0:00:30]} 11. Nbd2 {[%emt 0:05:30]} Be7 {[%emt 0:05:30]} 12. Qa4 {[%emt 0:02:30]} Qc7 {[%emt 0:01:30]} 13. b3 {[%emt 0:13:30]} O-O {[%emt 0:01:30]} 14. dxe5 {[%emt 0:02:30]} dxe5 {[%emt 0:00:30] [#]} 15. Ba3 $146 {[%emt 0:03:30]} ({Predecessor:} 15. Bb2 Nc5 16. Qc4 Bd6 17. Rac1 Rac8 18. Bxe5 Ne6 19. Bxd6 Qxd6 20. e5 Qd5 21. Qxd5 cxd5 {½-½ (49) Hammer,J (2532)-Ghaem Maghami,E (2604) ICC INT 2009}) 15... Nb6 {[%emt 0:04:30]} 16. Qa5 {[%emt 0:01:30] aiming for Bxe7.} Bxa3 {[%emt 0:00:30]} 17. Qxa3 {[%emt 0:00:00]} Rfd8 {[%emt 0:00:30]} 18. Re3 {[%emt 0:03:00]} f6 {[%emt 0:01:30]} 19. Rc1 {[%emt 0:00:30]} Bf7 {[%emt 0:01:30]} 20. Rec3 {[%emt 0:00:30]} Rd6 {[%emt 0:00:30]} 21. Nf1 {[%emt 0:00:30]} a5 {[%emt 0:02:30]} 22. Ne3 {[%emt 0:00:30] Hoping for Nf5.} Be6 {[%emt 0:00:30]} (22... Bg6 $11) 23. Qb2 {[%emt 0:02:30]} a4 {[%emt 0:06:30]} 24. b4 {[%emt 0:07:30]} Qb7 {[%emt 0:02:30]} 25. a3 {[%emt 0:02:30]} Nc8 {[%emt 0:00:30] [#]} (25... Rad8 $14) 26. Nd2 $1 $16 {[%emt 0:01:30][%cal Bf3d2,Bd2c4,Bc4d6][%mdl 32]} Ne7 {[%emt 0:03:30]} 27. Ndc4 {[%emt 0:01:30]} Rd4 {[%emt 0:00:30]} 28. Qc2 {[%emt 0:00:30]} c5 {[%emt 0:00:30]} 29. bxc5 {[%emt 0:01:30] Black must now prevent Nd6.} Qxe4 {[%emt 0:01:30]} 30. Qxe4 {[%emt 0:00:30]} Rxe4 {[%emt 0:00:00]} 31. Nd6 {[%emt 0:00:00]} (31. c6 $14 {was preferrable.}) 31... Rd4 $11 {[%emt 0:00:00]} 32. Nc2 $36 {[%emt 0:02:00][%mdl 2048] White fights for an advantage.} Rd2 {[%emt 0:03:30]} 33. Nb4 {[%emt 0:00:00]} Rd8 {[%emt 0:06:30]} 34. Nb7 {[%emt 0:01:00] Pair of Knights!} Rc8 {[%emt 0:05:30]} 35. c6 $1 {[%emt 0:01:30][%cal Bc5c6,Bc6c7][%mdl 32]} Nd5 {[%emt 0:00:30]} 36. Nxd5 {[%emt 0:00:30]} Bxd5 {[%emt 0:00:30][%mdl 8192] [#]} (36... Rxd5 $14 37. c7 Kf8) 37. Nd6 $18 {[%emt 0:01:30] White is winning.} Rc7 {[%emt 0:00:30]} 38. Nb5 {[%emt 0:00:00]} Rc8 {[%emt 0:00:30]} 39. c7 {[%emt 0:00:00] Weighted Error Value: White=0.05 (flawless) /Black=0.28 (precise)} 1-0